[Event "Early-Titled-Tuesday-Blitz-January-30-2024"]
[Site "Chess.com"]
[Date "2024.01.30"]
[Round "5"]
[White "Alexei_Kornev"]
[Black "ACollins05"]
[Result "0-1"]
[WhiteElo "2721"]
[BlackElo "2485"]
[TimeControl "180+1"]
[EndTime "8:56:45 PST"]
[Termination "ACollins05 won by resignation"]

1. e4 {[%clk 0:03:00.9]} 1... c5 {[%clk 0:02:59.5]} 2. Nf3 {[%clk 0:03:00.5]}
2... d6 {[%clk 0:02:59.5]} 3. d4 {[%clk 0:03:00.2]} 3... cxd4 {[%clk 0:03:00.4]}
4. Nxd4 {[%clk 0:03:00.6]} 4... Nf6 {[%clk 0:03:01]} 5. Nc3 {[%clk 0:03:00.4]}
5... Nc6 {[%clk 0:03:01.5]} 6. Bg5 {[%clk 0:02:59.2]} 6... e6 {[%clk 0:03:01.3]}
7. Qd3 {[%clk 0:02:57.9]} 7... a6 {[%clk 0:02:58.8]} 8. O-O-O {[%clk 0:02:57.4]}
8... Bd7 {[%clk 0:02:58.7]} 9. f4 {[%clk 0:02:56.1]} 9... Be7 {[%clk 0:02:46.2]}
10. Nf3 {[%clk 0:02:54]} 10... b5 {[%clk 0:02:24.7]} 11. e5 {[%clk 0:02:42.2]}
11... dxe5 {[%clk 0:02:24.9]} 12. fxe5 {[%clk 0:02:41.7]} 12... Nd5 {[%clk
0:02:24.2]} 13. Bxe7 {[%clk 0:02:41]} 13... Ncxe7 {[%clk 0:02:24.1]} 14. Ne4
{[%clk 0:02:38.6]} 14... O-O {[%clk 0:02:23.2]} 15. Kb1 {[%clk 0:02:33.2]} 15...
b4 {[%clk 0:02:17.5]} 16. Neg5 {[%clk 0:02:29.2]} 16... Ng6 {[%clk 0:02:13.2]}
17. h4 {[%clk 0:02:29.1]} 17... Bb5 {[%clk 0:02:11.9]} 18. Qe4 {[%clk 0:02:29]}
18... Nc3+ {[%clk 0:02:09.1]} 19. bxc3 {[%clk 0:02:19.3]} 19... Qxd1+ {[%clk
0:02:09.3]} 20. Kb2 {[%clk 0:02:19.4]} 20... bxc3+ {[%clk 0:02:09.5]} 21. Kb3
{[%clk 0:01:39.5]} 21... Qb1+ {[%clk 0:02:07.1]} 22. Kxc3 {[%clk 0:01:39.4]}
22... Rac8+ {[%clk 0:01:33.5]} 23. Kd2 {[%clk 0:01:38.9]} 23... Rfd8+ {[%clk
0:01:31.9]} 24. Ke3 {[%clk 0:01:37.2]} 24... Qc1+ {[%clk 0:01:18.8]} 25. Kf2
{[%clk 0:01:35.8]} 25... Rxc2+ {[%clk 0:01:17.7]} 26. Kg3 {[%clk 0:01:33.4]}
26... Bxf1 {[%clk 0:01:14.6]} 27. Rg1 {[%clk 0:01:24]} 27... h6 {[%clk
0:00:25.1]} 28. h5 {[%clk 0:01:18.2]} 28... hxg5 {[%clk 0:00:24.4]} 29. hxg6
{[%clk 0:01:18]} 29... Qf4+ {[%clk 0:00:24.5]} 30. Qxf4 {[%clk 0:01:15.4]} 30...
gxf4+ {[%clk 0:00:25.4]} 31. Kxf4 {[%clk 0:01:16]} 31... Bb5 {[%clk 0:00:19.1]}
32. Rb1 {[%clk 0:01:07.6]} 32... Rxa2 {[%clk 0:00:17.6]} 33. Rc1 {[%clk
0:01:06.6]} 33... Rxg2 {[%clk 0:00:16.9]} 34. gxf7+ {[%clk 0:01:05.7]} 34...
Kxf7 {[%clk 0:00:17.8]} 35. Rc7+ {[%clk 0:01:05.8]} 35... Kg8 {[%clk 0:00:17.8]}
36. Re7 {[%clk 0:01:04]} 36... Rf8+ {[%clk 0:00:17.4]} 37. Ke3 {[%clk
0:01:03.8]} 37... Rg3 {[%clk 0:00:17.6]} 0-1

[Event "Early-Titled-Tuesday-Blitz-January-30-2024"]
[Site "Chess.com"]
[Date "2024.01.30"]
[Round "5"]
[White "Veleamater"]
[Black "Djager97"]
[Result "0-1"]
[WhiteElo "2330"]
[BlackElo "2571"]
[TimeControl "180+1"]
[EndTime "8:56:45 PST"]
[Termination "Djager97 won by resignation"]

1. g3 {[%clk 0:03:00.9]} 1... d5 {[%clk 0:02:57.9]} 2. Bg2 {[%clk 0:03:01.1]}
2... Nf6 {[%clk 0:02:58.4]} 3. d3 {[%clk 0:03:01.8]} 3... c5 {[%clk 0:02:56.9]}
4. Nf3 {[%clk 0:03:02.3]} 4... Nc6 {[%clk 0:02:56.4]} 5. O-O {[%clk 0:03:02.9]}
5... g6 {[%clk 0:02:56.5]} 6. h3 {[%clk 0:03:02.7]} 6... Bg7 {[%clk 0:02:56]} 7.
Nc3 {[%clk 0:03:03.1]} 7... O-O {[%clk 0:02:55.6]} 8. e4 {[%clk 0:03:03.5]} 8...
d4 {[%clk 0:02:55.7]} 9. Ne2 {[%clk 0:03:03]} 9... e5 {[%clk 0:02:56.2]} 10. Ne1
{[%clk 0:03:03.6]} 10... b5 {[%clk 0:02:44.6]} 11. f4 {[%clk 0:03:04.5]} 11...
c4 {[%clk 0:02:42]} 12. f5 {[%clk 0:02:58.8]} 12... Nd7 {[%clk 0:02:10.1]} 13.
g4 {[%clk 0:02:57.4]} 13... Nc5 {[%clk 0:02:10]} 14. Ng3 {[%clk 0:02:57]} 14...
Qd6 {[%clk 0:01:58.8]} 15. Nf3 {[%clk 0:02:55.5]} 15... a5 {[%clk 0:01:56.5]}
16. Rf2 {[%clk 0:02:55]} 16... Ba6 {[%clk 0:01:55]} 17. Bf1 {[%clk 0:02:54.6]}
17... cxd3 {[%clk 0:01:50]} 18. cxd3 {[%clk 0:02:53.9]} 18... b4 {[%clk
0:01:45.1]} 19. g5 {[%clk 0:02:46.6]} 19... Rfc8 {[%clk 0:01:41.7]} 20. Nh4
{[%clk 0:02:43.4]} 20... a4 {[%clk 0:01:22]} 21. Rf3 {[%clk 0:02:41.4]} 21... b3
{[%clk 0:01:14.2]} 22. a3 {[%clk 0:02:40.4]} 22... Ra7 {[%clk 0:01:07.7]} 23.
Bd2 {[%clk 0:02:40.2]} 23... Rac7 {[%clk 0:01:06.3]} 24. Rc1 {[%clk 0:02:39.1]}
24... Bf8 {[%clk 0:00:49.9]} 25. f6 {[%clk 0:02:33]} 25... Nd8 {[%clk
0:00:35.2]} 26. Bb4 {[%clk 0:02:31.3]} 26... Nde6 {[%clk 0:00:34.9]} 27. Ngf5
{[%clk 0:02:29.9]} 27... gxf5 {[%clk 0:00:33.6]} 28. Nxf5 {[%clk 0:02:27.4]}
28... Qd7 {[%clk 0:00:32.4]} 29. Rg3 {[%clk 0:02:16.6]} 29... Nxd3 {[%clk
0:00:23.3]} 30. Rxc7 {[%clk 0:02:15.1]} 30... Qxc7 {[%clk 0:00:21.4]} 31. Bxd3
{[%clk 0:02:13.2]} 31... Qc1 {[%clk 0:00:20.8]} 32. Qxc1 {[%clk 0:02:12.6]}
32... Rxc1+ {[%clk 0:00:21.7]} 33. Kf2 {[%clk 0:02:11]} 33... Bxd3 {[%clk
0:00:17.4]} 34. Rxd3 {[%clk 0:02:07.4]} 34... Rc2+ {[%clk 0:00:17]} 35. Kg3
{[%clk 0:01:59]} 35... Bxb4 {[%clk 0:00:17.4]} 36. Ne7+ {[%clk 0:01:41.3]} 36...
Bxe7 {[%clk 0:00:15.3]} 37. fxe7 {[%clk 0:01:40.5]} 37... Rc8 {[%clk 0:00:13.6]}
38. Kg4 {[%clk 0:01:40.3]} 38... Re8 {[%clk 0:00:13.4]} 39. Kf5 {[%clk
0:01:40.7]} 39... Kg7 {[%clk 0:00:13.8]} 40. Kxe5 {[%clk 0:01:40.2]} 40... Rxe7
{[%clk 0:00:13.9]} 41. Kd6 {[%clk 0:01:40.4]} 41... Rc7 {[%clk 0:00:13]} 42. h4
{[%clk 0:01:36.6]} 42... Rc2 {[%clk 0:00:13.5]} 43. Rg3 {[%clk 0:01:35.6]} 43...
Rxb2 {[%clk 0:00:13.5]} 44. h5 {[%clk 0:01:36]} 44... Rc2 {[%clk 0:00:12.5]} 45.
Ke5 {[%clk 0:01:36.3]} 45... b2 {[%clk 0:00:12.1]} 46. Kf5 {[%clk 0:01:36.1]}
46... b1=Q {[%clk 0:00:11.4]} 47. h6+ {[%clk 0:01:36.6]} 47... Kf8 {[%clk
0:00:11]} 0-1

[Event "Early-Titled-Tuesday-Blitz-January-30-2024"]
[Site "Chess.com"]
[Date "2024.01.30"]
[Round "5"]
[White "MightyGMpretender"]
[Black "BigAl"]
[Result "1-0"]
[WhiteElo "2822"]
[BlackElo "2537"]
[TimeControl "180+1"]
[EndTime "8:56:46 PST"]
[Termination "MightyGMpretender won by resignation"]

1. d4 {[%clk 0:03:00.9]} 1... Nf6 {[%clk 0:02:56.3]} 2. Nf3 {[%clk 0:03:00.3]}
2... g6 {[%clk 0:02:56.9]} 3. c4 {[%clk 0:02:58.6]} 3... Bg7 {[%clk 0:02:57.8]}
4. Nc3 {[%clk 0:02:58.7]} 4... O-O {[%clk 0:02:58.7]} 5. g3 {[%clk 0:02:59]}
5... d6 {[%clk 0:02:59.6]} 6. Bg2 {[%clk 0:02:59.1]} 6... Nbd7 {[%clk
0:03:00.5]} 7. O-O {[%clk 0:02:59.4]} 7... e5 {[%clk 0:03:01.4]} 8. e4 {[%clk
0:02:57.2]} 8... c6 {[%clk 0:03:02]} 9. h3 {[%clk 0:02:56.9]} 9... Qa5 {[%clk
0:03:01.9]} 10. Re1 {[%clk 0:02:55.8]} 10... exd4 {[%clk 0:03:01.1]} 11. Nxd4
{[%clk 0:02:55.9]} 11... Ne5 {[%clk 0:03:01.8]} 12. Bf1 {[%clk 0:02:41.8]} 12...
Qb6 {[%clk 0:02:59.9]} 13. Nb3 {[%clk 0:02:32.1]} 13... Be6 {[%clk 0:02:55.5]}
14. Be3 {[%clk 0:02:31.9]} 14... c5 {[%clk 0:02:55.9]} 15. Nd5 {[%clk
0:02:09.9]} 15... Bxd5 {[%clk 0:02:56]} 16. exd5 {[%clk 0:02:08.9]} 16... Rfe8
{[%clk 0:02:52.4]} 17. Be2 {[%clk 0:02:05.1]} 17... a6 {[%clk 0:02:40]} 18. Qc2
{[%clk 0:02:02.4]} 18... Re7 {[%clk 0:02:33.1]} 19. Bd2 {[%clk 0:01:54.1]} 19...
Rae8 {[%clk 0:02:31.6]} 20. Ba5 {[%clk 0:01:46.7]} 20... Qa7 {[%clk 0:02:31.5]}
21. Kg2 {[%clk 0:01:45.3]} 21... b6 {[%clk 0:02:27.6]} 22. Bc3 {[%clk
0:01:43.6]} 22... Qb7 {[%clk 0:02:26.8]} 23. Rad1 {[%clk 0:01:39.6]} 23... Qd7
{[%clk 0:01:54.3]} 24. f4 {[%clk 0:01:30.9]} 24... Nxc4 {[%clk 0:01:42]} 25.
Bxc4 {[%clk 0:01:30.8]} 25... b5 {[%clk 0:01:42.5]} 26. Rxe7 {[%clk 0:01:27.5]}
26... Rxe7 {[%clk 0:01:40.7]} 27. Be2 {[%clk 0:01:18.9]} 27... c4 {[%clk
0:01:34.9]} 28. Na5 {[%clk 0:01:14.1]} 28... Re3 {[%clk 0:01:30.6]} 29. Bf3
{[%clk 0:01:02.4]} 29... h5 {[%clk 0:01:14.9]} 30. Qd2 {[%clk 0:00:45.9]} 30...
Rxf3 {[%clk 0:01:14.1]} 31. Kxf3 {[%clk 0:00:46.2]} 31... Qxh3 {[%clk
0:01:14.8]} 32. Bxf6 {[%clk 0:00:46.7]} 32... Bxf6 {[%clk 0:01:15]} 33. Nc6
{[%clk 0:00:31.1]} 33... h4 {[%clk 0:01:14.6]} 34. Rg1 {[%clk 0:00:30.1]} 34...
c3 {[%clk 0:01:08.8]} 35. bxc3 {[%clk 0:00:28.7]} 35... hxg3 {[%clk 0:01:07.2]}
36. Rxg3 {[%clk 0:00:28.6]} 36... Qh5+ {[%clk 0:01:08.1]} 37. Kg2 {[%clk
0:00:28.2]} 37... Qf5 {[%clk 0:01:07.8]} 38. Nb4 {[%clk 0:00:16.2]} 38... Qxf4
{[%clk 0:01:06.8]} 39. Qxf4 {[%clk 0:00:16.1]} 1-0

[Event "Early-Titled-Tuesday-Blitz-January-30-2024"]
[Site "Chess.com"]
[Date "2024.01.30"]
[Round "5"]
[White "Ati1517"]
[Black "ATM622"]
[Result "0-1"]
[WhiteElo "2238"]
[BlackElo "2465"]
[TimeControl "180+1"]
[EndTime "8:56:47 PST"]
[Termination "ATM622 won by resignation"]

1. e4 {[%clk 0:02:48]} 1... c6 {[%clk 0:02:59.9]} 2. d4 {[%clk 0:02:47.5]} 2...
d5 {[%clk 0:03:00]} 3. Nc3 {[%clk 0:02:48]} 3... dxe4 {[%clk 0:03:00.1]} 4. Nxe4
{[%clk 0:02:48.6]} 4... Bf5 {[%clk 0:02:59.6]} 5. Ng3 {[%clk 0:02:48.4]} 5...
Bg6 {[%clk 0:02:59.5]} 6. f4 {[%clk 0:02:49]} 6... e6 {[%clk 0:02:58.8]} 7. Nf3
{[%clk 0:02:48.5]} 7... Nd7 {[%clk 0:02:57.6]} 8. c3 {[%clk 0:02:48.6]} 8...
Ngf6 {[%clk 0:02:57.3]} 9. Ne5 {[%clk 0:02:48.2]} 9... Nxe5 {[%clk 0:02:49.4]}
10. fxe5 {[%clk 0:02:49.1]} 10... Nd5 {[%clk 0:02:48.5]} 11. Bd3 {[%clk
0:02:49.5]} 11... Be7 {[%clk 0:02:45.7]} 12. O-O {[%clk 0:02:49.3]} 12... O-O
{[%clk 0:02:44.4]} 13. Bxg6 {[%clk 0:02:48.8]} 13... hxg6 {[%clk 0:02:44.4]} 14.
Kh1 {[%clk 0:02:47.8]} 14... c5 {[%clk 0:02:36.7]} 15. Ne4 {[%clk 0:02:41.3]}
15... cxd4 {[%clk 0:02:29.5]} 16. cxd4 {[%clk 0:02:42.2]} 16... Rc8 {[%clk
0:02:14.7]} 17. Bd2 {[%clk 0:02:34.3]} 17... Nb6 {[%clk 0:01:56.1]} 18. Bc3
{[%clk 0:02:26.4]} 18... Qd5 {[%clk 0:01:49.5]} 19. Ng3 {[%clk 0:02:22.4]} 19...
Rc6 {[%clk 0:01:36.9]} 20. Ne2 {[%clk 0:02:13.1]} 20... Bg5 {[%clk 0:01:21]} 21.
Nf4 {[%clk 0:01:43.1]} 21... Qd7 {[%clk 0:01:12.3]} 22. Qg4 {[%clk 0:01:38.7]}
22... Bxf4 {[%clk 0:01:00.6]} 23. Rxf4 {[%clk 0:01:36.6]} 23... Nd5 {[%clk
0:00:55.8]} 24. Rf3 {[%clk 0:01:32.8]} 24... Qe8 {[%clk 0:00:35.6]} 25. Rh3
{[%clk 0:01:30.2]} 25... f5 {[%clk 0:00:35.6]} 26. exf6 {[%clk 0:01:14.4]} 26...
Rxf6 {[%clk 0:00:29.9]} 27. Re1 {[%clk 0:01:10.1]} 27... Qf7 {[%clk 0:00:23.5]}
28. Qe2 {[%clk 0:00:50.4]} 28... Nf4 {[%clk 0:00:20.3]} 29. Qd3 {[%clk
0:00:46.8]} 29... Nxd3 {[%clk 0:00:20.1]} 30. Rxd3 {[%clk 0:00:46.4]} 30... Rf1+
{[%clk 0:00:20.1]} 0-1

[Event "Early-Titled-Tuesday-Blitz-January-30-2024"]
[Site "Chess.com"]
[Date "2024.01.30"]
[Round "5"]
[White "SharapovEvgeny"]
[Black "baki83"]
[Result "1/2-1/2"]
[WhiteElo "2542"]
[BlackElo "2801"]
[TimeControl "180+1"]
[EndTime "8:56:49 PST"]
[Termination "Game drawn by repetition"]

1. e4 {[%clk 0:02:59.9]} 1... c5 {[%clk 0:02:59.6]} 2. Nf3 {[%clk 0:03:00]} 2...
d6 {[%clk 0:03:00.2]} 3. d4 {[%clk 0:03:00.2]} 3... cxd4 {[%clk 0:03:01.1]} 4.
Nxd4 {[%clk 0:03:00.6]} 4... Nf6 {[%clk 0:03:01.7]} 5. f3 {[%clk 0:03:01.2]}
5... Nc6 {[%clk 0:03:01.5]} 6. c4 {[%clk 0:03:00.8]} 6... g6 {[%clk 0:03:01.7]}
7. Be3 {[%clk 0:03:00.7]} 7... Bg7 {[%clk 0:03:02.1]} 8. Nc3 {[%clk 0:03:01.1]}
8... O-O {[%clk 0:03:02.4]} 9. Be2 {[%clk 0:03:01.7]} 9... a6 {[%clk 0:03:02.9]}
10. O-O {[%clk 0:03:01.7]} 10... Rb8 {[%clk 0:03:01.9]} 11. Qd2 {[%clk
0:03:01.8]} 11... Bd7 {[%clk 0:03:02.4]} 12. Rac1 {[%clk 0:03:01.1]} 12... Nxd4
{[%clk 0:02:59.2]} 13. Bxd4 {[%clk 0:03:00.7]} 13... b5 {[%clk 0:02:59.4]} 14.
b3 {[%clk 0:02:55]} 14... bxc4 {[%clk 0:02:46.4]} 15. Bxc4 {[%clk 0:02:53]}
15... a5 {[%clk 0:02:41.3]} 16. Nd5 {[%clk 0:02:49.8]} 16... Nxd5 {[%clk
0:02:37.9]} 17. Bxd5 {[%clk 0:02:42.2]} 17... Bxd4+ {[%clk 0:02:16.4]} 18. Qxd4
{[%clk 0:02:41.8]} 18... Rc8 {[%clk 0:02:06.5]} 19. Rfd1 {[%clk 0:02:39]} 19...
Rxc1 {[%clk 0:02:02.7]} 20. Rxc1 {[%clk 0:02:38.7]} 20... Qb8 {[%clk 0:02:03.1]}
21. Rc3 {[%clk 0:02:30.1]} 21... Rd8 {[%clk 0:01:55.3]} 22. h4 {[%clk
0:02:28.7]} 22... h5 {[%clk 0:01:53.2]} 23. Bc6 {[%clk 0:02:22.8]} 23... Qb4
{[%clk 0:01:36.1]} 24. Qxb4 {[%clk 0:02:16.1]} 24... axb4 {[%clk 0:01:35.8]} 25.
Rc4 {[%clk 0:02:16.6]} 25... Bxc6 {[%clk 0:01:33.9]} 26. Rxc6 {[%clk 0:02:16.5]}
26... Rb8 {[%clk 0:01:27.2]} 27. Rc7 {[%clk 0:02:16.3]} 27... Kf8 {[%clk
0:01:27]} 28. Ra7 {[%clk 0:02:13.8]} 28... f6 {[%clk 0:01:25.1]} 29. Kf2 {[%clk
0:02:12.4]} 29... Kf7 {[%clk 0:01:25.5]} 30. Ke3 {[%clk 0:02:12.5]} 30... Rc8
{[%clk 0:01:25.6]} 31. Kd2 {[%clk 0:02:08.7]} 31... f5 {[%clk 0:01:24.4]} 32.
Ra4 {[%clk 0:01:59]} 32... Rb8 {[%clk 0:01:23]} 33. Kd3 {[%clk 0:01:55.1]} 33...
fxe4+ {[%clk 0:01:09.9]} 34. fxe4 {[%clk 0:01:48.3]} 34... g5 {[%clk 0:01:03.4]}
35. hxg5 {[%clk 0:01:47.7]} 35... Kg6 {[%clk 0:01:03.7]} 36. Kc4 {[%clk
0:01:45.5]} 36... Kxg5 {[%clk 0:01:02]} 37. Rxb4 {[%clk 0:01:44.6]} 37... Rc8+
{[%clk 0:00:54.6]} 38. Kd3 {[%clk 0:01:41.2]} 38... Kf4 {[%clk 0:00:55]} 39. a4
{[%clk 0:01:37.5]} 39... Kg3 {[%clk 0:00:49.7]} 40. Rb7 {[%clk 0:01:32.4]} 40...
Re8 {[%clk 0:00:45.9]} 41. a5 {[%clk 0:01:32]} 41... Kxg2 {[%clk 0:00:42.7]} 42.
a6 {[%clk 0:01:32.5]} 42... h4 {[%clk 0:00:36.5]} 43. a7 {[%clk 0:01:32.2]}
43... Ra8 {[%clk 0:00:36.7]} 44. Rxe7 {[%clk 0:01:31.8]} 44... h3 {[%clk
0:00:37.3]} 45. Rg7+ {[%clk 0:01:31.4]} 45... Kf3 {[%clk 0:00:37.5]} 46. Rf7+
{[%clk 0:01:22.9]} 46... Kg2 {[%clk 0:00:37.9]} 47. Rg7+ {[%clk 0:01:20.6]}
47... Kf3 {[%clk 0:00:38]} 48. Rf7+ {[%clk 0:01:01.8]} 48... Kg2 {[%clk
0:00:38.3]} 49. Rg7+ {[%clk 0:01:02.1]} 1/2-1/2

[Event "Early-Titled-Tuesday-Blitz-January-30-2024"]
[Site "Chess.com"]
[Date "2024.01.30"]
[Round "5"]
[White "PetrolulSah"]
[Black "Arimin1329"]
[Result "1-0"]
[WhiteElo "2209"]
[BlackElo "2403"]
[TimeControl "180+1"]
[EndTime "8:56:50 PST"]
[Termination "PetrolulSah won by resignation"]

1. d4 {[%clk 0:03:00.9]} 1... d5 {[%clk 0:02:57.5]} 2. g3 {[%clk 0:02:59.4]}
2... Bf5 {[%clk 0:02:56.1]} 3. Bg2 {[%clk 0:02:57.6]} 3... h6 {[%clk 0:02:55.1]}
4. c4 {[%clk 0:02:57.6]} 4... e6 {[%clk 0:02:53.7]} 5. Qb3 {[%clk 0:02:56.7]}
5... dxc4 {[%clk 0:02:51.6]} 6. Qxb7 {[%clk 0:02:55.6]} 6... Bxb1 {[%clk
0:02:44]} 7. Rxb1 {[%clk 0:02:48.2]} 7... c6 {[%clk 0:02:43.5]} 8. Qxa8 {[%clk
0:02:42.6]} 8... Bb4+ {[%clk 0:02:42.3]} 9. Kf1 {[%clk 0:02:37.1]} 9... Ne7
{[%clk 0:02:41.5]} 10. Bf4 {[%clk 0:02:33]} 10... O-O {[%clk 0:02:26.5]} 11.
Qxb8 {[%clk 0:02:24.3]} 11... Qa5 {[%clk 0:02:25.6]} 12. Qc7 {[%clk 0:01:51.1]}
12... Qxa2 {[%clk 0:02:23.8]} 13. Rc1 {[%clk 0:01:50.2]} 13... Rc8 {[%clk
0:02:01]} 14. Qe5 {[%clk 0:01:45.1]} 14... Qxb2 {[%clk 0:01:56.9]} 15. d5 {[%clk
0:01:39.3]} 15... c3 {[%clk 0:01:15.4]} 16. dxe6 {[%clk 0:01:16.9]} 16... f6
{[%clk 0:01:09.9]} 17. Qe3 {[%clk 0:00:45.3]} 17... Rd8 {[%clk 0:01:05.9]} 18.
Be4 {[%clk 0:00:39.3]} 18... g5 {[%clk 0:00:56.8]} 19. Bc7 {[%clk 0:00:35.9]}
19... Rd2 {[%clk 0:00:52.8]} 20. Kg2 {[%clk 0:00:34.3]} 20... Qxc1 {[%clk
0:00:48.3]} 21. Nf3 {[%clk 0:00:34.2]} 21... Qb2 {[%clk 0:00:34.9]} 22. Nxd2
{[%clk 0:00:33.5]} 22... cxd2 {[%clk 0:00:35.8]} 23. Qd3 {[%clk 0:00:33.2]}
23... f5 {[%clk 0:00:24.1]} 24. Bxf5 {[%clk 0:00:31.5]} 24... Qe5 {[%clk
0:00:20.9]} 25. Bxe5 {[%clk 0:00:30.1]} 1-0

[Event "Early-Titled-Tuesday-Blitz-January-30-2024"]
[Site "Chess.com"]
[Date "2024.01.30"]
[Round "5"]
[White "Bauman_Guy"]
[Black "FormerProdigy"]
[Result "0-1"]
[WhiteElo "2870"]
[BlackElo "3029"]
[TimeControl "180+1"]
[EndTime "8:56:53 PST"]
[Termination "FormerProdigy won by resignation"]

1. e4 {[%clk 0:02:49]} 1... c5 {[%clk 0:02:59.4]} 2. Nf3 {[%clk 0:02:48]} 2...
d6 {[%clk 0:02:59.9]} 3. d4 {[%clk 0:02:48.2]} 3... cxd4 {[%clk 0:03:00.8]} 4.
Nxd4 {[%clk 0:02:49]} 4... Nf6 {[%clk 0:03:01.3]} 5. Nc3 {[%clk 0:02:48.7]} 5...
a6 {[%clk 0:03:01.8]} 6. h3 {[%clk 0:02:49.1]} 6... e5 {[%clk 0:03:01.6]} 7.
Nde2 {[%clk 0:02:49.3]} 7... h5 {[%clk 0:03:01.3]} 8. Bg5 {[%clk 0:02:49.8]}
8... Be6 {[%clk 0:02:48.8]} 9. Nc1 {[%clk 0:02:48.9]} 9... Be7 {[%clk
0:02:45.9]} 10. Nb3 {[%clk 0:02:47.6]} 10... Nbd7 {[%clk 0:02:46.2]} 11. Be2
{[%clk 0:02:47.6]} 11... b5 {[%clk 0:02:44.7]} 12. a4 {[%clk 0:02:45.9]} 12...
b4 {[%clk 0:02:44.2]} 13. Nd5 {[%clk 0:02:46.5]} 13... Nxd5 {[%clk 0:02:15]} 14.
exd5 {[%clk 0:02:47.4]} 14... Bf5 {[%clk 0:02:15.5]} 15. Bxe7 {[%clk 0:02:46]}
15... Qxe7 {[%clk 0:02:16.4]} 16. Na5 {[%clk 0:02:43.9]} 16... Qg5 {[%clk
0:02:14.4]} 17. g3 {[%clk 0:02:39.9]} 17... h4 {[%clk 0:02:04.4]} 18. g4 {[%clk
0:02:38.8]} 18... Be4 {[%clk 0:02:02.9]} 19. f3 {[%clk 0:02:36.6]} 19... Bg6
{[%clk 0:01:58.3]} 20. Nc6 {[%clk 0:02:34.8]} 20... Nf6 {[%clk 0:01:38.3]} 21.
Nxb4 {[%clk 0:02:14]} 21... Qf4 {[%clk 0:01:38.2]} 22. Qd2 {[%clk 0:02:14]}
22... Qg3+ {[%clk 0:01:38.5]} 23. Kf1 {[%clk 0:02:14.4]} 23... O-O {[%clk
0:01:19.2]} 24. Nc6 {[%clk 0:02:13.7]} 24... e4 {[%clk 0:01:07.6]} 25. Ne7+
{[%clk 0:01:22.6]} 25... Kh7 {[%clk 0:01:07.3]} 26. Qe3 {[%clk 0:01:22.3]} 26...
Rae8 {[%clk 0:00:56.4]} 27. Nxg6 {[%clk 0:00:52.3]} 27... fxg6 {[%clk
0:00:57.3]} 28. Qf2 {[%clk 0:00:52.6]} 28... exf3 {[%clk 0:00:57.7]} 29. Bxf3
{[%clk 0:00:52.8]} 29... Ne4 {[%clk 0:00:52.5]} 30. Qxg3 {[%clk 0:00:52.7]}
30... Nxg3+ {[%clk 0:00:53.4]} 31. Kg2 {[%clk 0:00:53.3]} 31... Nxh1 {[%clk
0:00:50]} 32. Rxh1 {[%clk 0:00:54.2]} 32... a5 {[%clk 0:00:45.6]} 33. c3 {[%clk
0:00:44.7]} 33... Rf4 {[%clk 0:00:45.1]} 34. Ra1 {[%clk 0:00:36.8]} 34... Re3
{[%clk 0:00:43.4]} 35. Bd1 {[%clk 0:00:36.9]} 35... Rg3+ {[%clk 0:00:43.7]} 36.
Kh2 {[%clk 0:00:34]} 36... Rf2+ {[%clk 0:00:44]} 37. Kh1 {[%clk 0:00:34.4]}
37... Rxh3+ {[%clk 0:00:44.6]} 38. Kg1 {[%clk 0:00:35.1]} 38... Rxb2 {[%clk
0:00:45.2]} 0-1

[Event "Early-Titled-Tuesday-Blitz-January-30-2024"]
[Site "Chess.com"]
[Date "2024.01.30"]
[Round "5"]
[White "GMWSO"]
[Black "frederiksvane"]
[Result "1-0"]
[WhiteElo "3143"]
[BlackElo "2914"]
[TimeControl "180+1"]
[EndTime "8:56:55 PST"]
[Termination "GMWSO won by resignation"]

1. d4 {[%clk 0:03:00.9]} 1... Nf6 {[%clk 0:03:00.1]} 2. c4 {[%clk 0:03:00]} 2...
e6 {[%clk 0:03:00.3]} 3. Nc3 {[%clk 0:03:00.5]} 3... Bb4 {[%clk 0:03:00.3]} 4.
Bd2 {[%clk 0:03:00.7]} 4... O-O {[%clk 0:02:58.9]} 5. Rc1 {[%clk 0:02:59.9]}
5... b6 {[%clk 0:02:55.6]} 6. e3 {[%clk 0:02:50.2]} 6... Bb7 {[%clk 0:02:55.8]}
7. Nf3 {[%clk 0:02:48.4]} 7... c5 {[%clk 0:02:54.4]} 8. a3 {[%clk 0:02:48.1]}
8... Bxc3 {[%clk 0:02:54.5]} 9. Bxc3 {[%clk 0:02:49]} 9... Ne4 {[%clk
0:02:51.6]} 10. Bd3 {[%clk 0:02:39.5]} 10... d6 {[%clk 0:02:44.4]} 11. Bxe4
{[%clk 0:02:35.4]} 11... Bxe4 {[%clk 0:02:45]} 12. Nd2 {[%clk 0:02:35.8]} 12...
Bb7 {[%clk 0:02:39.9]} 13. dxc5 {[%clk 0:02:34.6]} 13... bxc5 {[%clk 0:02:11.3]}
14. O-O {[%clk 0:02:34.5]} 14... Nd7 {[%clk 0:02:09.1]} 15. b4 {[%clk
0:02:21.6]} 15... Qe7 {[%clk 0:02:06.2]} 16. e4 {[%clk 0:02:13.1]} 16... Rfc8
{[%clk 0:01:21]} 17. f4 {[%clk 0:01:58.3]} 17... d5 {[%clk 0:01:09.8]} 18. exd5
{[%clk 0:01:45.3]} 18... exd5 {[%clk 0:01:10.2]} 19. Re1 {[%clk 0:01:42]} 19...
Qd8 {[%clk 0:00:55.4]} 20. cxd5 {[%clk 0:01:17]} 20... cxb4 {[%clk 0:00:55.5]}
21. axb4 {[%clk 0:01:14.9]} 21... Bxd5 {[%clk 0:00:55.7]} 22. Qg4 {[%clk
0:01:13.6]} 22... f6 {[%clk 0:00:49.8]} 23. Nf1 {[%clk 0:01:04.2]} 23... Bf7
{[%clk 0:00:19.2]} 24. Red1 {[%clk 0:00:49.6]} 24... Qb6+ {[%clk 0:00:19]} 25.
Kh1 {[%clk 0:00:49.8]} 25... Be6 {[%clk 0:00:16.3]} 26. f5 {[%clk 0:00:46.5]}
26... Rxc3 {[%clk 0:00:06.4]} 27. Rxc3 {[%clk 0:00:42.6]} 27... Ne5 {[%clk
0:00:06.8]} 28. Qe4 {[%clk 0:00:42.5]} 1-0